bitfinex/quotes_BTCUSD_20260311
["timestamp","ask_amount","ask_price","bid_price","bid_amount"]
[1773201758042,0.07183082,69608.0,69589.0,0.07185043]
[1773201758675,0.07183082,69608.0,69590.0,0.0331248]
[1773201759127,0.07183082,69608.0,69592.0,0.0330248]
[1773201759511,0.00144,69609.0,69592.0,0.0330248]
[1773201760119,0.07182771,69612.0,69592.0,0.0330248]
[1773201760295,0.00144,69611.0,69592.0,0.0330248]
[1773201761642,0.07326811,69611.0,69593.0,0.0718463]
[1773201763099,0.1486719,69610.0,69591.0,0.07184837]
[1773201764209,0.1486719,69610.0,69588.0,0.00154]
[1773201764453,0.1486719,69610.0,69570.0,0.0002348]
[1773201764454,0.09717328,69599.0,69578.0,0.07197299]
[1773201764653,0.09717328,69599.0,69579.0,0.07186076]
[1773201764654,0.00144,69598.0,69579.0,0.07186076]
[1773201764869,0.0001,69596.0,69579.0,0.07186076]
[1773201765206,0.0001,69596.0,69578.0,0.07197395]
[1773201765760,0.0001,69596.0,69583.0,0.0002]
[1773201765965,0.0001,69596.0,69584.0,0.01809406]
[1773201765966,0.00144,69595.0,69584.0,0.01809406]
[1773201766169,0.00144,69595.0,69585.0,0.07185456]
[1773201766374,0.0011,69596.0,69586.0,0.01809406]
[1773201766569,0.00144,69595.0,69586.0,0.01809406]
[1773201767178,0.0011,69596.0,69586.0,0.01809406]
[1773201767384,0.0011,69596.0,69586.0,0.01792539]
[1773201767768,0.07182979,69609.0,69586.0,0.01792539]
[1773201767964,0.0001,69613.0,69586.0,0.01792539]
[1773201767965,0.00144,69608.0,69586.0,0.01792539]
[1773201768163,0.0001,69613.0,69588.0,0.01989149]
[1773201768164,0.07192602,69613.0,69588.0,0.01989149]
[1773201768367,0.00144,69609.0,69588.0,0.01989149]
[1773201769406,0.00144,69609.0,69588.0,0.02089149]
[1773201769808,0.00144,69609.0,69588.0,0.01989149]
[1773201770320,0.00144,69609.0,69589.0,0.07185043]
[1773201770469,0.00144,69609.0,69590.0,0.02882875]
[1773201772167,0.00144,69608.0,69590.0,0.02882875]
[1773201772395,0.00144,69608.0,69591.0,0.07184837]
[1773201772579,0.00144,69608.0,69592.0,0.02738875]
[1773201773005,0.07327103,69608.0,69591.0,0.07184837]
[1773201773782,0.07327103,69608.0,69591.0,0.09906846]
[1773201774793,0.07327103,69608.0,69592.0,0.001]
[1773201775295,0.07327103,69608.0,69591.0,0.09906846]
[1773201775700,0.07327103,69608.0,69591.0,0.07167971]
[1773201775901,0.07327103,69608.0,69591.0,0.09906846]
[1773201777014,0.07327103,69608.0,69590.0,0.02738875]
[1773201777241,0.00144,69607.0,69590.0,0.14869377]
[1773201777546,0.00144,69609.0,69591.0,0.02738875]
[1773201778136,0.00022001,69608.0,69591.0,0.02738875]
[1773201778478,0.0001,69613.0,69591.0,0.02738875]
[1773201778852,0.0001,69613.0,69591.0,0.02838875]
[1773201779246,0.0001,69613.0,69593.0,0.02738875]
[1773201779446,0.0001,69613.0,69595.0,0.02738875]
[1773201780661,0.00584001,69620.0,69601.0,0.09232377]
[1773201780866,0.00584001,69620.0,69602.0,0.02227854]
[1773201781063,0.07765934,69620.0,69602.0,0.02227854]
[1773201781265,0.07181953,69619.0,69603.0,0.07183598]
[1773201781665,0.07181953,69619.0,69603.0,0.09250589]
[1773201781878,0.00059413,69617.0,69603.0,0.09250589]
[1773201782887,0.00059413,69617.0,69604.0,0.02083854]
[1773201783520,0.00059413,69617.0,69605.0,0.07183391]
[1773201784614,0.00059413,69617.0,69606.0,0.02075423]
[1773201785673,0.00166001,69622.0,69608.0,0.02075423]
[1773201785894,0.00022001,69622.0,69608.0,0.02256835]
[1773201787519,0.00022001,69622.0,69609.0,0.07182979]
[1773201787717,0.00022001,69622.0,69610.0,0.02700423]
[1773201788131,0.00144,69626.0,69610.0,0.0268356]
[1773201789311,0.00144,69626.0,69610.0,0.0278356]
[1773201789530,0.00144,69626.0,69611.0,0.07182772]
[1773201789732,0.00144,69626.0,69612.0,0.02691992]
[1773201790550,0.00144,69626.0,69612.0,0.02675131]
[1773201791792,0.00144,69626.0,69614.0,0.02567041]
[1773201792175,0.00144,69626.0,69614.0,0.02550182]
[1773201795079,0.00144,69626.0,69615.0,0.0718236]
[1773201795230,0.00045001,69625.0,69615.0,0.0718236]
[1773201795871,0.00045001,69625.0,69615.0,0.09855098]
[1773201797147,0.09337746,69624.0,69608.0,0.00037412]
[1773201797387,0.09337746,69624.0,69603.0,0.0002]
[1773201797388,0.14869377,69620.0,69606.0,0.07183261]
[1773201797550,0.14906789,69620.0,69596.0,0.0002]
[1773201797786,0.14906789,69620.0,69580.0,0.07185971]
[1773201797787,0.14906789,69620.0,69580.0,0.00144]
[1773201797788,0.14869377,69610.0,69580.0,0.00144]
[1773201797989,0.00144,69609.0,69589.0,0.07205017]
[1773201798253,0.00144,69609.0,69589.0,0.0002]
[1773201798409,0.00144,69609.0,69589.0,0.07204964]
[1773201799233,0.07183082,69608.0,69589.0,0.0002]
[1773201800601,0.00144,69607.0,69589.0,0.02692738]
[1773201801141,0.00144,69606.0,69592.0,0.07184733]
[1773201801505,0.00144,69605.0,69593.0,0.02672738]
[1773201802292,0.00599412,69620.0,69585.0,0.21499285]
[1773201802507,0.00599412,69620.0,69572.0,0.0002]
[1773201802508,0.00599412,69620.0,69578.0,0.02672738]
[1773201802509,0.14869377,69603.0,69578.0,0.02672738]
[1773201802705,0.00144,69602.0,69583.0,0.07205643]
[1773201802847,0.00144,69601.0,69583.0,0.07205643]
[1773201803046,0.00144,69600.0,69583.0,0.07205643]
[1773201803250,0.07184114,69598.0,69583.0,0.07205643]
[1773201804276,0.07184114,69598.0,69589.0,0.0002]
[1773201804485,0.07184114,69598.0,69589.0,0.00031223]
[1773201805488,0.07144114,69598.0,69576.0,0.07206374]
[1773201805668,0.0715533,69598.0,69576.0,0.07206374]
[1773201805856,0.0725533,69598.0,69576.0,0.07206374]
[1773201806055,0.0735533,69598.0,69576.0,0.07206374]
[1773201806334,0.0725533,69598.0,69576.0,0.07206374]
[1773201806809,0.0735533,69598.0,69577.0,0.07186235]
[1773201807014,0.0725533,69598.0,69579.0,0.07206025]
[1773201807187,0.0715533,69598.0,69579.0,0.07206025]
[1773201807369,0.0725533,69598.0,69579.0,0.0002]
[1773201807976,0.0715533,69598.0,69579.0,0.0002]
[1773201808179,0.00144,69597.0,69580.0,0.02692113]
[1773201808399,0.00144,69596.0,69579.0,0.0002]
[1773201808607,0.00144,69596.0,69576.0,0.02692113]
[1773201808807,0.00011216,69598.0,69576.0,0.02692113]
[1773201809005,0.00144,69597.0,69576.0,0.02692113]
[1773201809434,0.0718432,69596.0,69577.0,0.07186282]
[1773201809638,0.0718432,69596.0,69577.0,0.10503395]
[1773201809964,0.14869377,69590.0,69573.0,0.0002]
[1773201810338,0.0718432,69596.0,69574.0,0.03317113]
[1773201811771,0.0718432,69596.0,69575.0,0.10503602]
[1773201812395,0.0728432,69596.0,69575.0,0.10503602]
[1773201812886,0.0738432,69596.0,69575.0,0.10503602]
[1773201813037,0.0728432,69596.0,69575.0,0.10523602]
[1773201813458,0.0738432,69596.0,69575.0,0.10523602]
[1773201813858,0.0728432,69596.0,69575.0,0.10523602]
[1773201814074,0.14869377,69590.0,69575.0,0.03337113]
[1773201814279,0.00144,69589.0,69575.0,0.0002]
[1773201814522,0.00144,69589.0,69573.0,0.07206612]
[1773201814523,0.00144,69589.0,69573.0,0.0002]
[1773201815273,0.00096,69589.0,69573.0,0.0002]
[1773201815668,0.00196,69589.0,69573.0,0.0002]
[1773201815893,0.00196,69589.0,69573.0,0.0003395]
[1773201815894,0.07185146,69588.0,69573.0,0.0003395]
[1773201817399,0.00144,69587.0,69574.0,0.03317113]
[1773201818013,0.07185353,69586.0,69574.0,0.03317113]
[1773201818414,0.00144,69585.0,69574.0,0.03317113]
[1773201818648,0.00144,69585.0,69575.0,0.03317113]
[1773201818826,0.00144,69584.0,69575.0,0.03317113]
[1773201819232,0.07285353,69586.0,69575.0,0.03317113]
[1773201819465,0.07285353,69587.0,69575.0,0.03317113]
[1773201819466,0.00144,69585.0,69575.0,0.03317113]
[1773201819627,0.00144,69588.0,69575.0,0.03317113]
[1773201820263,0.00144,69588.0,69577.0,0.03317113]
[1773201820487,0.00144,69593.0,69579.0,0.03317113]
[1773201822238,0.07328665,69593.0,69581.0,0.03317113]
[1773201823662,0.00144,69593.0,69581.0,0.03317113]
[1773201824383,0.00144,69593.0,69583.0,0.03854029]
[1773201825509,0.0732867,69593.0,69583.0,0.03954029]
[1773201825683,0.0732867,69593.0,69583.0,0.001]
[1773201826787,0.0732867,69593.0,69583.0,0.002]
[1773201827193,0.0732867,69593.0,69583.0,0.07185621]
[1773201828086,0.0742867,69593.0,69583.0,0.07185621]
[1773201828287,0.0732867,69593.0,69583.0,0.07185621]
[1773201828508,0.0732867,69593.0,69582.0,0.07185696]
[1773201828684,0.0742867,69593.0,69582.0,0.07185696]
[1773201829919,0.00144,69592.0,69582.0,0.07185696]
[1773201830147,0.00144,69592.0,69583.0,0.03854029]
[1773201830698,0.0718454,69594.0,69584.0,0.03854029]
[1773201830699,0.07328837,69591.0,69584.0,0.03854029]
[1773201831499,0.07328837,69591.0,69582.0,0.07185678]
[1773201831500,0.00144,69591.0,69568.0,0.10547512]
[1773201831723,0.14869377,69583.0,69573.0,1e-08]
[1773201831919,0.07184677,69593.0,69573.0,1e-08]
[1773201831920,0.00144,69582.0,69573.0,1e-08]
[1773201832253,0.00144,69581.0,69573.0,1e-08]
[1773201832399,0.14869377,69590.0,69573.0,1e-08]
[1773201832400,0.00144,69580.0,69573.0,1e-08]
[1773201832586,0.07186179,69578.0,69573.0,1e-08]
[1773201835730,0.00144,69577.0,69574.0,0.03854029]
[1773201836217,0.00144,69577.0,69573.0,0.00020001]
[1773201836810,0.07186386,69576.0,69573.0,0.00020001]
[1773201839675,0.07186386,69576.0,69573.0,0.0387403]
[1773201840038,0.07186386,69576.0,69573.0,0.00020001]
[1773201841158,0.00144,69577.0,69574.0,0.03854029]
[1773201841342,0.04765799,69578.0,69573.0,0.00020001]
[1773201842371,0.04765799,69578.0,69573.0,1e-08]
[1773201843049,0.00144,69578.0,69573.0,1e-08]
[1773201844890,0.00244,69578.0,69573.0,1e-08]
[1773201845218,0.07186282,69577.0,69573.0,1e-08]
[1773201845487,0.07170952,69577.0,69573.0,1e-08]
[1773201847186,0.07330243,69578.0,69573.0,0.0385403]
[1773201847383,0.07186168,69579.0,69573.0,0.0385403]
[1773201847719,0.00144,69578.0,69573.0,0.0385403]
[1773201847905,0.07330243,69578.0,69573.0,0.0385403]
[1773201849573,0.07352244,69578.0,69573.0,0.0385403]
[1773201850178,0.07452244,69578.0,69573.0,0.0385403]
[1773201852880,0.07352244,69578.0,69573.0,0.0385403]
[1773201853227,0.07452244,69578.0,69573.0,0.0385403]
[1773201855942,0.07452244,69578.0,69573.0,1e-08]
[1773201857129,0.00266001,69578.0,69573.0,1e-08]
[1773201857538,0.07452189,69578.0,69573.0,1e-08]
[1773201857881,0.00144,69581.0,69575.0,0.03853203]
[1773201859354,0.07185972,69580.0,69575.0,0.03853203]
[1773201861083,0.07185972,69580.0,69573.0,1e-08]
[1773201861239,0.07185972,69580.0,69573.0,0.01926602]
[1773201863221,0.07185972,69580.0,69573.0,0.01926602]
[1773201864285,0.07185972,69580.0,69573.0,1e-08]
[1773201864491,0.07185972,69580.0,69573.0,0.01926602]
[1773201865446,0.07185874,69581.0,69573.0,0.01926602]
[1773201867264,0.07185874,69581.0,69573.0,0.09113224]
[1773201867798,0.07185874,69581.0,69573.0,0.01926602]
[1773201868177,0.07185874,69581.0,69573.0,0.09113282]
[1773201868378,1e-08,69585.0,69576.0,0.01926601]
[1773201870094,1e-08,69585.0,69578.0,0.01926601]
[1773201872158,1e-08,69585.0,69580.0,0.01926601]
[1773201872377,0.07184424,69595.0,69580.0,0.01926601]
[1773201872582,0.00022001,69596.0,69580.0,0.04959899]
[1773201872754,0.00144,69594.0,69581.0,0.01926601]
[1773201873155,0.00144,69593.0,69581.0,0.01926601]
[1773201874181,0.00144,69593.0,69582.0,0.07185766]
[1773201874382,0.00144,69593.0,69583.0,0.01926601]
[1773201875128,0.00022001,69596.0,69583.0,0.01926601]
[1773201875288,0.00144,69593.0,69583.0,0.01926601]
[1773201876451,0.00144,69593.0,69585.0,0.01926601]
[1773201877027,0.00022001,69596.0,69585.0,0.01926601]
[1773201877448,0.00144,69597.0,69587.0,0.01926601]
[1773201877794,0.00144,69599.0,69587.0,0.01926601]
[1773201878001,0.00080101,69604.0,69587.0,0.01926601]
[1773201878002,0.00144,69600.0,69587.0,0.01926601]
[1773201878357,0.00080101,69604.0,69587.0,0.01926601]
[1773201878597,1e-08,69604.0,69591.0,0.01926601]
[1773201879400,1e-08,69604.0,69590.0,0.04959899]
[1773201879401,1e-08,69604.0,69593.0,0.01926601]
[1773201880375,0.00022001,69610.0,69594.0,0.04959899]
[1773201880575,0.00022001,69610.0,69601.0,0.01926601]
[1773201881766,7.63e-05,69610.0,69601.0,0.01926601]
[1773201882169,7.63e-05,69610.0,69601.0,0.02026601]
[1773201882593,7.63e-05,69610.0,69603.0,0.01923454]
[1773201883369,0.00022001,69604.0,69603.0,0.01923454]
[1773201883806,7.63e-05,69610.0,69603.0,0.01923454]
[1773201884737,7.63e-05,69610.0,69602.0,0.07183701]
[1773201885697,7.63e-05,69610.0,69586.0,0.01923454]
[1773201885898,7.63e-05,69610.0,69587.0,0.00144]
[1773201886096,7.63e-05,69610.0,69588.0,0.01923454]
[1773201886345,7.63e-05,69610.0,69602.0,0.001]
[1773201886540,7.63e-05,69610.0,69593.0,0.01923454]
[1773201886928,7.63e-05,69610.0,69594.0,0.07184527]
[1773201887546,0.00045026,69610.0,69594.0,0.07184527]
[1773201889150,0.07182979,69609.0,69591.0,0.01923454]
[1773201889727,0.07182979,69609.0,69591.0,0.02067454]
[1773201890074,0.07182979,69609.0,69591.0,0.01923454]
[1773201890250,0.07182979,69609.0,69591.0,0.02067454]
[1773201891176,0.07182979,69609.0,69593.0,0.01923454]
[1773201893083,0.07182979,69609.0,69594.0,0.07184527]
[1773201893285,0.04959899,69604.0,69586.0,0.01923454]
[1773201893490,0.04959899,69600.0,69586.0,0.01923454]
[1773201893683,0.01520765,69602.0,69586.0,0.01923454]
[1773201893884,0.04959899,69600.0,69585.0,0.07185456]
[1773201894114,0.01520765,69599.0,69584.0,0.07200076]
[1773201894244,0.01520765,69594.0,69580.0,0.0002]
[1773201894449,0.01520765,69590.0,69575.0,0.07209443]
[1773201894836,0.01520765,69590.0,69575.0,0.07209469]
[1773201895278,0.01520765,69590.0,69573.0,1e-08]
[1773201895279,0.01518834,69588.0,69573.0,1e-08]
[1773201895441,0.01518834,69582.0,69573.0,1e-08]
[1773201895642,0.01518834,69580.0,69573.0,1e-08]
[1773201897003,0.01518834,69580.0,69568.0,0.10567312]
[1773201897152,0.01567178,69579.0,69568.0,0.17754458]
[1773201897977,0.01567178,69579.0,69576.0,0.0002]
[1773201898566,0.07186003,69580.0,69576.0,0.0002]
[1773201899618,0.001,69579.0,69576.0,0.0002]
[1773201899826,0.07186003,69580.0,69569.0,0.0002]
[1773201899827,0.0718601,69580.0,69569.0,0.0002]
[1773201900004,0.01660432,69579.0,69569.0,0.0002]
[1773201900394,0.07330076,69581.0,69569.0,0.0002]
[1773201901124,0.00144,69581.0,69569.0,0.0002]
[1773201901325,0.04981964,69590.0,69569.0,0.0002]
[1773201901326,0.00144,69580.0,69571.0,0.0165552]
[1773201901496,0.00144,69579.0,69572.0,0.07186799]
[1773201901846,0.07185645,69584.0,69573.0,0.0165552]
[1773201902009,0.00144,69583.0,69573.0,0.0165552]
[1773201903449,0.00144,69583.0,69572.0,0.07186799]
[1773201903659,0.00144,69582.0,69570.0,0.07187004]
[1773201904219,0.04959963,69580.0,69569.0,0.07207109]
[1773201904419,0.01552467,69579.0,69569.0,0.07207109]
[1773201904927,0.01552467,69579.0,69569.0,0.0002]
[1773201905621,0.07329781,69582.0,69569.0,0.0002]
[1773201905827,0.0903854,69582.0,69569.0,0.0002]
[1773201906029,0.01708759,69581.0,69569.0,0.0002]
[1773201906672,0.04959963,69580.0,69569.0,0.0002]
[1773201906981,0.01708759,69579.0,69569.0,0.0002]
[1773201909708,0.00144,69582.0,69570.0,0.0165552]
[1773201909859,0.00144,69582.0,69571.0,0.07186902]
[1773201910498,0.08894425,69583.0,69571.0,0.07186902]
[1773201910705,0.00144,69582.0,69571.0,0.07186902]
[1773201911272,0.01708759,69580.0,69562.0,0.0002]
[1773201911473,0.01708759,69573.0,69562.0,0.0002]
[1773201911673,0.01852759,69572.0,69562.0,0.0002]
[1773201912097,0.01708759,69570.0,69562.0,0.0002]
[1773201912914,0.01708759,69570.0,69556.0,0.0002083]
[1773201913137,0.01708759,69570.0,69539.0,0.07238131]
[1773201913138,0.01708759,69565.0,69551.0,0.07188969]
[1773201913273,0.04959963,69560.0,69550.0,0.07212065]
[1773201913472,0.00144,69559.0,69550.0,0.00023]
[1773201914033,0.01708759,69556.0,69550.0,0.00023]
[1773201914436,0.01708759,69556.0,69545.0,0.0002083]
[1773201916248,0.07188555,69555.0,69545.0,0.0002083]
[1773201916447,0.01708759,69554.0,69545.0,0.0002083]
[1773201916615,0.00144,69553.0,69545.0,0.0002083]
[1773201916821,0.01708759,69552.0,69539.0,0.00048]
[1773201917040,0.00144,69553.0,69533.0,0.0004083]
[1773201917041,0.01708759,69548.0,69533.0,0.0004083]
[1773201917209,0.04959963,69543.0,69533.0,0.0004083]
[1773201917404,0.00144,69542.0,69533.0,0.0004083]
[1773201917617,0.00144,69542.0,69530.0,0.0002]
[1773201917618,0.01708759,69541.0,69530.0,0.0002]
[1773201917996,0.01708759,69539.0,69530.0,0.0002]
[1773201918317,0.01708759,69537.0,69530.0,0.0002]
[1773201918537,0.01852759,69536.0,69530.0,0.0002]
[1773201919169,0.001,69541.0,69531.0,0.0165552]
[1773201919383,0.00144,69540.0,69531.0,0.0165552]
[1773201920026,0.08898145,69547.0,69531.0,0.0165552]
[1773201920232,0.0718895,69552.0,69532.0,0.07190933]
[1773201920435,0.00144,69551.0,69533.0,0.01776733]
[1773201920683,0.02022998,69551.0,69533.0,0.01776733]
[1773201920831,0.00144,69550.0,69533.0,0.01776733]
[1773201921026,0.01878998,69551.0,69533.0,0.01776733]
[1773201921328,0.001,69541.0,69533.0,0.01776733]
[1773201921514,0.00144,69544.0,69533.0,0.01776733]
[1773201922084,0.00144,69553.0,69533.0,0.01776733]
[1773201922285,0.00144,69553.0,69534.0,0.07190726]
[1773201922491,0.00144,69553.0,69535.0,0.01776733]
[1773201922688,0.07188404,69557.0,69537.0,0.01776733]
[1773201922889,0.00144,69552.0,69537.0,0.01776733]
[1773201924504,0.00144,69552.0,69538.0,0.07190313]
[1773201924676,0.00144,69552.0,69539.0,0.01776733]
[1773201926738,0.07187729,69563.0,69541.0,0.01776733]
[1773201926902,0.01878998,69561.0,69543.0,0.01776733]
[1773201927108,0.01878998,69561.0,69540.0,0.07190106]
[1773201927109,0.01878998,69559.0,69540.0,0.07190106]
[1773201928317,0.01838998,69559.0,69540.0,0.07190106]
[1773201928883,0.01878998,69557.0,69539.0,0.07190106]
[1773201929061,0.01878998,69557.0,69540.0,0.01776733]
[1773201931467,0.01878998,69555.0,69541.0,0.07190003]
[1773201931787,0.00144,69554.0,69541.0,0.07190003]
[1773201934405,0.00144,69554.0,69540.0,0.01776733]
[1773201935189,0.00144,69554.0,69542.0,0.01776733]
[1773201936495,0.01900999,69557.0,69543.0,0.07189796]
[1773201936716,0.21437332,69579.0,69544.0,0.01776733]
[1773201936717,0.07187748,69563.0,69544.0,0.01776733]
[1773201936915,0.00144,69562.0,69544.0,0.01776733]
[1773201937355,0.00144,69561.0,69544.0,0.01776733]
[1773201937711,0.07771661,69564.0,69544.0,0.01776733]
[1773201937917,0.00144,69560.0,69544.0,0.01776733]
[1773201938115,0.00144,69559.0,69544.0,0.01776733]
[1773201938336,0.00144,69560.0,69544.0,0.01776733]
[1773201938704,0.00144,69560.0,69545.0,0.07189589]
[1773201939035,0.00584001,69564.0,69546.0,0.01974874]
[1773201939336,0.00144,69563.0,69546.0,0.01974874]
[1773201939688,0.00022001,69554.0,69546.0,0.01974874]
[1773201940395,0.00144,69561.0,69546.0,0.01974874]
[1773201940598,0.00144,69562.0,69546.0,0.01974874]
[1773201940823,0.00584001,69564.0,69550.0,0.04961828]
[1773201941025,0.00584001,69564.0,69551.0,0.01974874]
[1773201941200,0.01959234,69564.0,69549.0,0.00144]
[1773201941631,0.02103234,69564.0,69547.0,0.07189382]
[1773201941791,0.02103234,69564.0,69547.0,0.09164256]
[1773201941993,0.01959234,69559.0,69547.0,0.07333382]
[1773201943125,0.00022001,69561.0,69547.0,0.09308256]
[1773201943331,0.00022001,69561.0,69547.0,0.07333382]
[1773201943510,0.00022001,69561.0,69548.0,0.01974874]
[1773201944763,0.00022001,69561.0,69549.0,0.07189175]
[1773201946889,0.00022001,69561.0,69549.0,0.07289175]
[1773201947292,0.00022001,69561.0,69551.0,0.01974874]
[1773201947497,0.00144,69565.0,69551.0,0.01974874]
[1773201947823,0.00144,69565.0,69551.0,0.02014874]
[1773201948465,0.00144,69565.0,69551.0,0.02114874]
[1773201948670,0.0002247,69567.0,69551.0,0.02114874]
[1773201948871,0.0002247,69567.0,69552.0,0.07188865]
[1773201949028,0.0002247,69567.0,69553.0,0.02118874]
[1773201950620,0.00022001,69565.0,69553.0,0.02118874]
[1773201951008,0.00022001,69565.0,69554.0,0.09287316]
[1773201951209,0.00022001,69565.0,69555.0,0.02098657]
[1773201951903,0.00022001,69565.0,69554.0,0.07188659]
[1773201952253,0.00022001,69565.0,69554.0,0.07199887]
[1773201952605,0.00022001,69565.0,69555.0,0.001]
[1773201952824,0.00022001,69565.0,69554.0,0.07199887]
[1773201952993,0.02186304,69564.0,69554.0,0.07199887]
[1773201953193,0.02186304,69564.0,69554.0,0.07299887]
[1773201953936,0.02186304,69564.0,69545.0,0.07189589]
[1773201953937,0.02186304,69562.0,69545.0,0.07189589]
[1773201954098,0.02186304,69559.0,69545.0,0.07189589]
[1773201954732,0.02186304,69559.0,69541.0,0.0002]
[1773201954981,0.02186304,69559.0,69541.0,0.07221188]
[1773201955133,0.02186304,69557.0,69541.0,0.07221188]
[1773201957419,0.02186304,69555.0,69541.0,0.07221188]
[1773201957710,0.00144,69554.0,69541.0,0.07221188]
[1773201957949,0.02330304,69554.0,69541.0,0.07221188]
[1773201959419,0.00144,69554.0,69543.0,0.07189796]
[1773201959623,0.00144,69554.0,69544.0,0.02098657]
[1773201959816,0.00144,69556.0,69544.0,0.02098657]
[1773201961298,0.1432149,69564.0,69544.0,0.02098657]
[1773201961299,0.00144,69560.0,69547.0,0.07189382]
[1773201961522,0.00144,69563.0,69551.0,0.02098657]
[1773201962839,0.00144,69563.0,69551.0,0.02198657]
[1773201963004,0.00144,69563.0,69551.0,0.02098657]
[1773201963391,0.00144,69563.0,69552.0,0.07188865]
[1773201963840,0.00144,69563.0,69553.0,0.02098657]
[1773201964259,0.00144,69563.0,69553.0,0.02081791]
[1773201964498,0.00144,69563.0,69552.0,0.07188865]
[1773201964899,0.00144,69563.0,69552.0,0.09287522]
[1773201966161,0.00144,69563.0,69552.0,0.09387522]
[1773201967080,0.00144,69563.0,69552.0,0.07288865]
[1773201967392,0.00134,69564.0,69553.0,0.02098657]
[1773201967596,0.00144,69566.0,69553.0,0.02098657]
[1773201967799,0.0002247,69567.0,69553.0,0.02098657]
[1773201967800,0.0016647,69567.0,69553.0,0.02098657]
[1773201968181,0.0002247,69567.0,69554.0,0.07188659]
[1773201968377,0.0016647,69567.0,69554.0,0.07188659]
[1773201968704,0.0002247,69567.0,69555.0,0.02098657]
[1773201968864,0.00144,69566.0,69555.0,0.02098657]
[1773201969987,0.0016647,69567.0,69555.0,0.02098657]
[1773201970311,0.0002247,69567.0,69556.0,0.07188452]
[1773201970489,0.0016647,69567.0,69556.0,0.07188452]
[1773201971793,0.0016647,69567.0,69556.0,0.07288452]
[1773201975940,0.02186304,69566.0,69556.0,0.07288445]
[1773201977320,0.02186304,69566.0,69556.0,0.07188445]
[1773201977731,0.02186304,69565.0,69551.0,0.0002]
[1773201977926,0.02186304,69565.0,69551.0,0.07208894]
[1773201978825,0.02186304,69565.0,69551.0,0.0002]
[1773201979050,0.07187625,69564.0,69551.0,0.0002]
[1773201979252,0.02186304,69563.0,69551.0,0.0002]
[1773201980488,0.02219474,69563.0,69551.0,0.0002]
[1773201981044,0.02219474,69563.0,69544.0,0.0002]
[1773201981045,0.02448953,69560.0,69544.0,0.0002]
[1773201981364,0.02448953,69558.0,69544.0,0.0002]
[1773201982431,0.02464143,69558.0,69544.0,0.0002]
[1773201983331,0.02448953,69556.0,69544.0,3.145e-05]
[1773201983486,0.02464143,69556.0,69544.0,3.145e-05]
[1773201983912,0.02448953,69553.0,69541.0,0.0722113]
[1773201984515,0.02464143,69553.0,69541.0,0.07204272]
[1773201984945,0.02592953,69552.0,69541.0,0.07204272]
[1773201985150,0.00144,69552.0,69542.0,0.02363635]
[1773201985556,0.0001519,69552.0,69542.0,0.02363635]
[1773201985759,0.00144,69551.0,69542.0,0.02363635]
[1773201985982,0.00144,69551.0,69544.0,0.0002]
[1773201986747,0.00144,69551.0,69544.0,3.149e-05]
[1773201988408,0.02448953,69550.0,69544.0,3.149e-05]
[1773201990293,0.02448953,69550.0,69539.0,0.07156969]
[1773201990502,0.024554,69550.0,69539.0,0.07156969]
[1773201992338,0.024554,69550.0,69539.0,0.07123278]
[1773201992970,0.024554,69550.0,69539.0,0.07106432]
[1773201996072,0.024554,69550.0,69539.0,0.07126432]
[1773201996271,0.12159197,69550.0,69532.0,0.07190921]
[1773201996475,0.12159197,69550.0,69535.0,0.07190623]
[1773201996476,0.02448953,69549.0,69535.0,0.07190623]
[1773201997786,0.0719554,69550.0,69535.0,0.07190623]
[1773201997988,0.0719554,69550.0,69536.0,0.02547383]
[1773201998152,0.00144,69549.0,69538.0,0.02547383]
[1773201998958,0.00144,69548.0,69538.0,0.02547383]
[1773202000008,0.00144,69548.0,69537.0,0.07190416]
[1773202002382,6.447e-05,69550.0,69538.0,0.02547383]
[1773202002613,0.00150447,69550.0,69538.0,0.02547383]
[1773202003206,0.00144,69549.0,69538.0,0.02547383]
[1773202003752,0.00150447,69550.0,69538.0,0.02547383]
[1773202004028,0.00150447,69550.0,69538.0,0.02647383]
[1773202004472,0.00150447,69550.0,69540.0,0.02547383]
[1773202004804,6.447e-05,69550.0,69540.0,0.02547383]
[1773202006038,0.0015919,69552.0,69541.0,0.02547383]
[1773202006360,0.0015919,69552.0,69542.0,0.09737282]
[1773202007328,0.0001519,69552.0,69542.0,0.09737282]
[1773202007536,0.0718815,69559.0,69542.0,0.09737282]
[1773202007537,0.09736626,69562.0,69543.0,0.02547383]
[1773202007731,0.00144,69559.0,69545.0,0.02547383]
[1773202007942,0.09736626,69562.0,69545.0,0.02547383]
[1773202007943,0.00144,69558.0,69545.0,0.02547383]
[1773202008857,0.00144,69558.0,69546.0,0.07189486]
[1773202009966,0.00144,69557.0,69546.0,0.07189486]
[1773202010335,0.00144,69557.0,69547.0,0.02412537]
[1773202011187,0.00144,69557.0,69548.0,0.07189279]
[1773202014820,0.00166001,69557.0,69548.0,0.07189279]
[1773202016544,0.00022001,69557.0,69548.0,0.09601816]
[1773202016921,0.00022001,69557.0,69548.0,0.07189279]
[1773202017324,0.00022001,69557.0,69549.0,0.02412537]
[1773202017522,0.00144,69561.0,69549.0,0.02412537]
[1773202017769,0.0001798,69562.0,69549.0,0.02412537]
[1773202017925,0.0016198,69562.0,69549.0,0.02412537]
[1773202018116,0.0016198,69562.0,69550.0,0.04962609]
[1773202018311,0.0016198,69562.0,69551.0,0.02412537]
[1773202019391,0.0016198,69562.0,69552.0,0.07188865]
[1773202020100,0.0001798,69562.0,69552.0,0.07188865]
[1773202020308,0.0001798,69562.0,69553.0,0.02412537]
[1773202020604,0.00022001,69563.0,69553.0,0.02412537]
[1773202020802,0.00039981,69572.0,69558.0,0.02412537]
[1773202021136,0.11402983,69584.0,69552.0,0.07188865]
[1773202021137,0.07350954,69590.0,69561.0,0.02412537]
[1773202021336,0.07185051,69589.0,69571.0,0.02412537]
[1773202021564,0.09676741,69585.0,69572.0,0.00144]
[1773202022389,0.07185574,69584.0,69572.0,0.00144]
[1773202022563,0.02491279,69581.0,69572.0,0.00144]
[1773202023359,0.02491279,69580.0,69572.0,0.001]
[1773202023537,0.02491279,69580.0,69568.0,0.00144]
[1773202023723,0.02635279,69580.0,69568.0,0.00144]
[1773202025486,0.02635279,69580.0,69569.0,0.07187109]
[1773202028007,0.00144,69580.0,69569.0,0.07187109]
[1773202030783,0.07329994,69580.0,69569.0,0.07187109]
[1773202030959,0.09821273,69580.0,69569.0,0.07187109]
[1773202031159,0.02635279,69580.0,69570.0,0.04962609]
[1773202031358,0.02635279,69580.0,69569.0,0.07187109]
[1773202032138,0.09821255,69580.0,69569.0,0.07187109]
[1773202032446,0.02491279,69579.0,69568.0,0.07331143]
[1773202032678,0.02491279,69577.0,69568.0,0.07187143]
[1773202033081,0.02491279,69577.0,69564.0,0.07187604]